lending/lending_fUSD_20250920
["ID","MTS","AMOUNT","RATE_DAILY","PERIOD"]
[386520732,1758342632568,-6532.67677391,0.0001989,2]
[386520733,1758342633025,-2269.282991,0.0001989,2]
[386520734,1758342633038,-445.1170005,0.0001989,2]
[386520735,1758342633058,-400.0,0.0001989,2]
[386520736,1758342633088,-28609.08402656,0.0001989,2]
[386520737,1758342633097,-873.44892041,0.00019892,2]
[386520738,1758342633106,-235.19386351,0.00019893,2]
[386520739,1758342633115,-1530.1285,0.00019899,2]
[386520740,1758342633126,-1161.5155,0.00019899,2]
[386520741,1758342633135,-72569.9544215,0.000199,2]
[386520742,1758342637452,-1310.56582246,0.00019811,2]
[386520743,1758342637461,-5749.5385785,0.000199,2]
[386520744,1758342637471,-1000.0,0.000199,2]
[386520745,1758342637481,-150.89,0.000199,2]
[386520746,1758342637490,-5000.0,0.000199,2]
[386520747,1758342637500,-8063.4211703,0.000199,2]
[386520748,1758342637707,-164.09,0.00019254,2]
[386520749,1758342637718,-2305.82818089,0.000199,2]
[386520750,1758342637728,-1425.0,0.00019949,2]
[386520751,1758342637740,-502.56329475,0.00019973,2]
[386520752,1758342637759,-502.12695812,0.00019973,2]
[386520754,1758342637769,-509.02996931,0.00019973,2]
[386520756,1758342637778,-2106.0,0.00019973,2]
[386520758,1758342637790,-501.12086562,0.00019973,2]
[386520760,1758342637800,-500.83205094,0.00019973,2]
[386520761,1758342637810,-502.46342727,0.00019973,2]
[386520762,1758342637819,-503.18601007,0.00019973,2]
[386520764,1758342637828,-500.0,0.00019973,2]
[386520766,1758342637838,-502.52884085,0.00019973,2]
[386520768,1758342637847,-500.0,0.00019973,2]
[386520770,1758342637857,-500.98732878,0.00019973,2]
[386520771,1758342637867,-527.69670373,0.00019973,2]
[386520772,1758342637876,-394.28403135,0.00019973,2]
[386520773,1758342637885,-500.0,0.00019973,2]
[386520774,1758342637895,-500.0,0.00019973,2]
[386520775,1758342637905,-502.15227302,0.00019973,2]
[386520776,1758342637914,-392.14146401,0.00019973,2]
[386520777,1758342637923,-500.0,0.00019973,2]
[386520778,1758342637933,-402.50395425,0.00019973,2]
[386520779,1758342637943,-492.64244635,0.00019973,2]
[386520780,1758342637952,-500.0,0.00019973,2]
[386520781,1758342637961,-310.73156232,0.00019973,2]
[386520783,1758342637971,-151.78776315,0.00019981,2]
[386520785,1758342637980,-151.0,0.00019992,2]
[386520787,1758342637989,-108294.68829012,0.00019992,2]
[386520789,1758342637999,-500.0,0.00019997,2]
[386520791,1758342638009,-150.0,0.00019997,2]
[386520793,1758342638018,-150.0,0.00019997,2]
[386520795,1758342638027,-500.0,0.00019997,2]
[386520797,1758342638036,-514.0,0.00019997,2]
[386520799,1758342638046,-500.0,0.00019997,2]
[386520801,1758342638055,-2255.0,0.00019997,2]
[386520803,1758342638064,-150.0,0.00019997,2]
[386520805,1758342638074,-252.27251821,0.00019997,2]
[386520807,1758342638083,-500.0,0.00019997,2]
[386520809,1758342638092,-677.0,0.00019997,2]
[386520811,1758342638101,-500.0,0.00019997,2]
[386520813,1758342638110,-223.29415269,0.00019997,2]
[386520816,1758342638120,-150.0,0.00019997,2]
[386520818,1758342638130,-150.0,0.00019997,2]
[386520820,1758342638139,-150.0,0.00019997,2]
[386520822,1758342638148,-150.0,0.00019997,2]
[386520824,1758342638158,-500.0,0.00019997,2]
[386520826,1758342638167,-500.0,0.00019997,2]
[386520828,1758342638177,-500.0,0.00019997,2]
[386520830,1758342638186,-150.0,0.00019997,2]
[386520832,1758342638196,-150.0,0.00019997,2]
[386520834,1758342638206,-446.0,0.00019997,2]
[386520836,1758342638215,-150.0,0.00019997,2]
[386520838,1758342638225,-204.32918758,0.00019997,2]
[386520840,1758342638234,-1029.0,0.00019997,2]
[386520842,1758342638243,-500.0,0.00019997,2]
[386520844,1758342638252,-151.0,0.00019997,2]
[386520846,1758342638261,-150.0,0.00019997,2]
[386520848,1758342638271,-218.38962976,0.00019997,2]
[386520850,1758342638280,-500.0,0.00019997,2]
[386520852,1758342638289,-202.66634182,0.00019997,2]
[386520854,1758342638299,-150.0,0.00019997,2]
[386520856,1758342638308,-150.0,0.00019997,2]
[386520858,1758342638317,-151.12208314,0.00019997,2]
[386520860,1758342638327,-489.0,0.00019997,2]
[386520862,1758342638336,-3333.4024129,0.00019998,2]
[386520864,1758342638346,-29635.5451182,0.00019998,2]
[386520866,1758342638355,-157.1089414,0.00019998,2]
[386520868,1758342638365,-1640.4863953,0.00019998,2]
[386520870,1758342638374,-1282.0,0.0002,2]
[386520872,1758342638383,-23492.53674011,0.0002,2]
[386520874,1758342638392,-64263.10494601,0.0002,2]
[386520876,1758342638404,-326354.04402568,0.0002,2]
[386520888,1758342638498,-48566.52822585,0.0002,2]
[386520920,1758342639667,-43.08982393,0.00018594,2]
[386520921,1758342639725,-456.91017607,0.00018594,2]
[386520922,1758342639734,-301.26873551,0.00018594,2]
[386520923,1758342639747,-1310.56582246,0.00019822,2]
[386520924,1758342639756,-440467.95984765,0.0002,2]
[386520925,1758342639766,-3950.0,0.0002,2]
[386520926,1758342639775,-121570.18271788,0.0002,2]
[386520927,1758342639786,-1274.95373995,0.0002,2]
[386520928,1758342639796,-7263.28079946,0.0002,2]
[386520929,1758342639805,-199.9782368,0.0002,3]
[386520930,1758342639817,-150.0,0.0002,2]
[386520931,1758342639827,-3049.77032457,0.0002,5]
[386520932,1758342639837,-1029.13877916,0.0002,2]
[386520933,1758342639847,-2819.4946404,0.0002,2]
[386520934,1758342639856,-90643.83026293,0.0002,2]
[386520935,1758342639865,-1419.48,0.0002,2]
[386520936,1758342639875,-2281.63,0.0002,2]
[386520937,1758342639885,-2281.63,0.0002,2]
[386520938,1758342639894,-2281.63,0.0002,2]
[386520939,1758342639905,-2281.63,0.0002,2]
[386520940,1758342639914,-2281.63,0.0002,2]
[386520941,1758342640256,-2281.62,0.0002,2]
[386520942,1758342640282,-2281.62,0.0002,2]
[386520943,1758342640291,-2281.62,0.0002,2]
[386520944,1758342640301,-2281.62,0.0002,2]
[386520945,1758342640310,-2281.62,0.0002,2]
[386520946,1758342640320,-2281.62,0.0002,2]
[386520947,1758342640329,-2281.62,0.0002,2]
[386520948,1758342640339,-2064.98914868,0.0002,2]
[386520949,1758342640348,-7927.39411083,0.0002,2]
[386520950,1758342640358,-1300508.92548905,0.0002,2]
[386520951,1758342640367,-1034129.47528549,0.0002,2]
[386520952,1758342640405,-270.9602,0.0002,2]
[386520962,1758342645470,-1174.80695084,0.00019833,2]
[386520964,1758342772265,263.63,0.00016986,2]
[386520966,1758343028161,1695.008005,7.945e-05,2]
[386520972,1758343574683,1286.524591,0.00018513,2]
[386520982,1758343645707,150.0,0.000177,2]
[386520984,1758343820922,151.0,0.00016708,2]
[386520985,1758343821558,817.0,0.00016708,2]
[386520986,1758343823201,817.0,0.00016708,2]
[386520987,1758343823915,817.0,0.00016708,2]
[386520989,1758343831752,-250.0,0.00018753,2]
[386520990,1758343831762,-250.0,0.00018848,2]
[386520991,1758343831771,-150.0,0.0001888,2]
[386520992,1758343831781,-1200.0,0.00018911,2]
[386520993,1758343831790,-6610.98827,0.00018912,2]
[386520994,1758343831799,-161.0,0.00018999,2]
[386520995,1758343831808,-300.0,0.00018999,2]
[386520996,1758343831818,-9209.91765335,0.00019,2]
[386520997,1758343831828,-239.17,0.00019032,2]
[386520998,1758343831835,-290.37,0.00019053,2]
[386520999,1758343831844,-200.0,0.00019063,2]
[386521000,1758343831854,-168.0,0.00019092,2]
[386521001,1758343831863,-524.0,0.0001921,2]
[386521002,1758343831872,-3156.98,0.00019339,2]
[386521003,1758343831882,-150.99,0.00019339,2]
[386521004,1758343831891,-999.99,0.00019339,2]
[386521005,1758343831900,-3531.78,0.00019339,2]
[386521006,1758343831909,-18764.05,0.00019339,2]
[386521007,1758343831918,-9999.99,0.00019339,2]
[386521008,1758343831928,-9999.99,0.00019339,2]
[386521009,1758343831937,-524.0,0.00019401,2]
[386521010,1758343831947,-168.0,0.00019433,2]
[386521011,1758343831956,-168.0,0.00019474,2]
[386521012,1758343831966,-168.0,0.0001949,2]
[386521013,1758343831975,-464.0,0.00019615,2]
[386521014,1758343831985,-160.04,0.00019709,2]
[386521015,1758343831994,-151.0,0.00019788,2]
[386521016,1758343832003,-151.0,0.00019788,2]
[386521017,1758343832012,-18528.1611,0.000198,2]
[386521018,1758343832022,-3359.41617636,0.000198,2]
[386521019,1758343832034,-138.07219364,0.000198,2]
[386521020,1758343832043,-168.0,0.00019863,2]
[386521021,1758343832052,-446.635,0.00019878,2]
[386521022,1758343832061,-5000.0,0.000199,2]
[386521023,1758343832071,-344.20904636,0.000199,2]
[386521025,1758343832080,-7999.15380638,0.000199,2]
[386521028,1758343832088,-152.0,0.0001991,3]
[386521030,1758343832098,-431.40183353,0.00019973,2]
[386521031,1758343832107,-504.27452211,0.00019973,2]
[386521032,1758343832116,-600.0,0.00019973,2]
[386521033,1758343832126,-174.05135132,0.00019973,2]
[386521034,1758343832136,-502.07549737,0.00019973,2]
[386521035,1758343832146,-507.16645521,0.00019973,2]
[386521036,1758343832155,-500.0,0.00019973,2]
[386521037,1758343832164,-502.53091354,0.00019973,2]
[386521038,1758343832174,-500.0,0.00019973,2]
[386521039,1758343832184,-500.0,0.00019973,2]
[386521041,1758343832193,-602.00865806,0.00019973,2]
[386521043,1758343832203,-505.37459811,0.00019973,2]
[386521044,1758343832212,-501.15187679,0.00019973,2]
[386521045,1758343832223,-503.26354201,0.00019973,2]
[386521046,1758343832233,-500.08876036,0.00019973,2]
[386521047,1758343832243,-458.177531,0.00019973,2]
[386521048,1758343832252,-501.88716823,0.00019973,2]
[386521049,1758343832262,-239.17,0.00019983,2]
[386521050,1758343832271,-168.0,0.00019985,2]
[386521051,1758343832281,-151.0,0.00019997,2]
[386521052,1758343832291,-307.85612409,0.00019999,2]
[386521053,1758343832300,-300.0,0.00019999,2]
[386521054,1758343832310,-999.99,0.00019999,2]
[386521055,1758343832320,-1230.77485922,0.00019999,5]
[386521056,1758343832330,-3000.0,0.00019999,2]
[386521057,1758343832339,-3000.0,0.00019999,7]
[386521058,1758343832349,-1998.78556602,0.00019999,12]
[386521059,1758343832359,-1030.0,0.0002,2]
[386521060,1758343832368,-26363.41750884,0.0002,2]
[386521061,1758343832378,-1398.44,0.0002,2]
[386521062,1758343832388,-1000.0,0.0002,2]
[386521063,1758343832397,-4342.037299,0.0002,2]
[386521064,1758343832408,-119894.45461708,0.0002,2]
[386521065,1758343832420,-124739.04682358,0.0002,2]
[386521066,1758343832447,-1025.95952308,0.0002,2]
[386521067,1758343832478,-260.56506852,0.0002,2]
[386521074,1758343837816,-317.1,0.0002,2]
[386521090,1758343839661,-31814.45247301,0.0002,2]
[386521093,1758343839671,-3122592.10930014,0.0002,2]
[386521116,1758343839871,-16671.27508408,0.0002,2]
[386521123,1758343839930,-302.17412442,0.0002,2]
[386521124,1758343839941,-502.29884863,0.0002,2]
[386521289,1758343845521,-117400.00000003,0.0002,2]
[386521290,1758343845576,-1766.95824697,0.0002,2]
[386521296,1758343846265,-349.23547999,0.0002,2]
[386521298,1758343989253,175.23,9.763e-05,2]
[386521299,1758343989433,175.23,0.00014645,2]
[386521302,1758344413731,164.0,0.000185,2]
[386521304,1758344535450,19209.0,0.000185,2]
[386521308,1758344697488,150.0,0.000176,2]
[386521309,1758344726942,5514.0,0.000189,5]
[386521310,1758344727162,5514.0,0.000184,3]
[386521313,1758344817024,167.04867168,0.00018389,30]
[386521322,1758344855171,624.0,0.00030137,120]
[386521323,1758344879838,167.04867168,0.00018389,30]
[386521324,1758345019778,1228.0,0.00017258,2]
[386521325,1758345021821,817.0,0.00017258,2]
[386521328,1758345031598,153.04,9.443e-05,2]
[386521336,1758345031804,153.04,0.00010792,2]
[386521338,1758345031876,-250.0,0.00018675,2]
[386521339,1758345031888,-150.0,0.00018675,2]
[386521340,1758345031899,-150.0,0.0001878,2]
[386521341,1758345031910,-3206.81,0.00018878,2]
[386521342,1758345031922,-430.63,0.00019182,2]
[386521343,1758345031934,-290.37,0.0001924,2]
[386521344,1758345031945,-164.09,0.00019317,2]
[386521345,1758345031957,-168.0,0.00019445,2]
[386521346,1758345031968,-1200.0,0.00019499,2]
[386521347,1758345031980,-1649.0,0.000195,2]
[386521348,1758345031991,-150.0,0.00019526,2]
[386521349,1758345032003,-150.99,0.00019526,2]
[386521350,1758345032014,-9980.53,0.00019526,2]
[386521351,1758345032026,-8852.55987732,0.00019526,2]
[386521352,1758345032077,153.04,0.00012141,2]
[386521353,1758345032215,153.04,0.0001349,2]
[386521355,1758345032343,-835.8403662,0.00019526,2]
[386521378,1758345032600,153.04,0.00014839,2]
[386521386,1758345032683,153.04,0.00016188,2]
[386521400,1758345032837,153.04,0.00017537,2]
[386521435,1758345039803,-153.04,0.00018886,2]
[386521436,1758345039814,-311.58975648,0.00019526,2]
[386521437,1758345039824,-853.83,0.00019526,2]
[386521438,1758345039833,-175.23,0.00019526,2]
[386521439,1758345039843,-2794.12289769,0.00019548,2]
[386521440,1758345039853,-179.37,0.0001956,2]
[386521441,1758345039863,-410.0,0.00019597,2]
[386521442,1758345039873,-410.0,0.00019707,2]
[386521443,1758345039882,-168.0,0.00019837,2]
[386521444,1758345039892,-1261.0,0.0001985,2]
[386521445,1758345039902,-1582.0,0.0001985,2]
[386521446,1758345039911,-569.0,0.0001985,2]
[386521447,1758345039922,-1304.0,0.0001985,2]
[386521448,1758345039932,-602.0,0.0001985,2]
[386521449,1758345039942,-813.0,0.0001985,2]
[386521450,1758345039951,-6180.0,0.0001985,2]
[386521451,1758345039961,-18876.0,0.0001985,2]
[386521452,1758345039971,-4174.0,0.0001985,2]
[386521453,1758345039982,-727.0,0.0001985,2]
[386521454,1758345039991,-357.308,0.00019888,2]
[386521455,1758345040001,-150.0,0.0001997,2]
[386521456,1758345040011,-500.0,0.00019973,2]
[386521457,1758345040021,-214.78588402,0.00019973,2]
[386521458,1758345040030,-500.0,0.00019973,2]
[386521459,1758345040039,-500.0,0.00019973,2]
[386521460,1758345040049,-252.27832615,0.00019973,2]
[386521461,1758345040059,-500.0,0.00019973,2]
[386521462,1758345040068,-500.0,0.00019973,2]
[386521463,1758345040078,-513.85978794,0.00019973,2]
[386521464,1758345040087,-151.62,0.0001999,2]
[386521465,1758345040097,-151.62,0.0001999,2]
[386521466,1758345040107,-151.62,0.0001999,2]
[386521467,1758345040118,-151.62,0.0001999,2]
[386521468,1758345040129,-151.62,0.0001999,2]
[386521469,1758345040138,-151.62,0.0001999,2]
[386521470,1758345040148,-151.62,0.0001999,2]
[386521471,1758345040157,-151.62,0.0001999,2]
[386521472,1758345040167,-151.62,0.0001999,2]
[386521473,1758345040177,-151.62,0.0001999,2]
[386521474,1758345040186,-151.62,0.0001999,2]
[386521475,1758345040195,-151.62,0.0001999,2]
[386521476,1758345040205,-151.62,0.0001999,2]
[386521477,1758345040215,-151.62,0.0001999,2]
[386521478,1758345040225,-151.62,0.0001999,2]
[386521479,1758345040234,-151.0,0.00019997,2]
[386521480,1758345040243,-325.44623276,0.00019999,2]
[386521481,1758345040253,-300.0,0.00019999,2]
[386521482,1758345040262,-151.0,0.00019999,2]
[386521483,1758345040271,-824.0,0.0002,2]
[386521484,1758345040281,-13181.70875443,0.0002,2]
[386521485,1758345040292,-31973.00247301,0.0002,2]
[386521486,1758345040368,-3059694.68966067,0.0002,2]
[386521492,1758345040444,-587.38562523,0.0002,2]
[386521500,1758345040510,-5009.8571314,0.0002,2]
[386521508,1758345040582,-9257.67864,0.0002,2]
[386521531,1758345043002,-1000.0,0.0002,2]
[386521532,1758345043166,-62653.32000001,0.0002,2]
[386521535,1758345044825,500.0,0.00013699,2]
[386521536,1758345045756,-898.0,0.0001985,2]
[386521537,1758345045766,-3775.96706782,0.0002,2]
[386521562,1758345749426,150.0,0.000184,2]
[386521565,1758345790578,337.74259293,0.0003,120]
[386521568,1758345979706,221.17,9.505e-05,2]
[386521573,1758346059001,29234.08380756,0.000185,2]
[386521574,1758346078063,153.06,0.0001521,2]
[386521587,1758346231136,1228.0,0.00017239,2]
[386521588,1758346231702,1228.0,0.00017239,2]
[386521598,1758346237959,-152.0,0.00018636,3]
[386521599,1758346237971,-164.09,0.00019076,2]
[386521600,1758346237982,-250.0,0.00019077,2]
[386521601,1758346237994,-253.72,0.00019079,2]
[386521602,1758346238006,-152.0,0.00019185,4]
[386521603,1758346238017,-1649.6381979,0.000192,2]
[386521604,1758346238028,-1128.0,0.00019425,2]
[386521605,1758346238039,-1128.0,0.00019527,2]
[386521606,1758346238051,-179.37,0.00019529,2]
[386521607,1758346238062,-150.0,0.0001958,2]
[386521608,1758346238074,-1128.0,0.00019674,2]
[386521609,1758346238086,-1000.11,0.000197,2]
[386521610,1758346238096,-152.0,0.00019735,5]
[386521611,1758346238106,-1200.0,0.00019799,2]
[386521612,1758346238115,-2893.0598021,0.000198,2]
[386521613,1758346238155,-21.5138379,0.000198,2]
[386521614,1758346238164,-1128.0,0.00019802,2]
[386521615,1758346238174,-1128.0,0.00019968,2]
[386521616,1758346238183,-500.0,0.00019973,2]
[386521617,1758346238193,-500.0,0.00019973,2]
[386521618,1758346238203,-500.0,0.00019973,2]
[386521619,1758346238212,-500.0,0.00019973,2]
[386521620,1758346238222,-500.0,0.00019973,2]
[386521621,1758346238231,-500.0,0.00019973,2]
[386521622,1758346238241,-500.0,0.00019973,2]
[386521623,1758346238250,-500.0,0.00019973,2]
[386521624,1758346238260,-601.1069875,0.00019973,2]
[386521625,1758346238269,-500.0,0.00019973,2]
[386521626,1758346238279,-151.0,0.00019988,2]
[386521627,1758346238288,-285.846,0.00019997,2]
[386521628,1758346238298,-151.0,0.00019997,2]
[386521629,1758346238308,-11172.78817752,0.00019998,2]
[386521786,1758346240012,-692.35340287,0.00019998,2]
[386521803,1758346240178,-3759.36337856,0.00019998,2]
[386521805,1758346240190,-7881.33350435,0.00019998,2]
[386521807,1758346240200,-61319.474324,0.00019998,2]
[386521810,1758346240209,-458.6398506,0.00019998,2]
[386521812,1758346240219,-20127.4259421,0.00019998,2]
[386521814,1758346240229,-3875.9713611,0.00019998,2]
[386521816,1758346240239,-5009.79528339,0.00019999,2]
[386521818,1758346240248,-817.0,0.0002,2]
[386521820,1758346240258,-13181.70875443,0.0002,2]
[386521822,1758346240268,-31976.80286876,0.0002,2]
[386521824,1758346240278,-1890250.96417445,0.0002,2]
[386521826,1758346240287,-150.0,0.0002,2]
[386521828,1758346240297,-7897.69174106,0.0002,2]
[386521830,1758346240306,-38182.04098109,0.0002,2]
[386521832,1758346240315,-5488.081735,0.0002,2]
[386521834,1758346240325,-2000.0,0.0002,2]
[386521836,1758346240335,-500.0,0.0002,2]
[386521838,1758346240344,-454.55,0.0002,2]
[386521840,1758346240353,-476.63,0.0002,2]
[386521842,1758346240363,-843320.85237358,0.0002,2]
[386521844,1758346240372,-10748.10723205,0.0002,2]
[386521846,1758346240381,-1509.61290643,0.0002,2]
[386521848,1758346240390,-25201.4210492,0.0002,2]
[386521850,1758346240399,-121003.78261855,0.0002,5]
[386521852,1758346240409,-2514.66061242,0.0002,4]
[386521854,1758346240418,-11777.85357555,0.0002,2]
[386521866,1758346240520,-4343.77716339,0.0002,2]
[386522145,1758346243256,-278386.78298644,0.0002,2]
[386522249,1758346248754,-21042.10098366,0.0002,2]
[386522250,1758346249579,-1159.9939168,0.0002,2]
[386522253,1758346541548,158.989654,0.00018152,2]
[386522254,1758346541869,158.989654,0.00017974,2]
[386522255,1758346542187,158.989654,0.00017909,2]
[386522256,1758346542724,158.989654,0.00017904,2]
[386522257,1758346542813,158.989654,0.00017692,2]
[386522258,1758346543985,167.21762,0.00018184,2]
[386522259,1758346544299,167.21762,0.00017936,2]
[386522260,1758346544601,167.21762,0.00017903,2]
[386522261,1758346616616,165.3,0.00016712,2]
[386522263,1758346777074,3000.0,0.00030137,120]
[386522264,1758346792650,3000.0,0.00030137,120]
[386522265,1758346797872,150.0,0.000183,2]
[386522266,1758346852212,500.0,0.00013699,2]
[386522268,1758346919534,605.87,9.489e-05,2]
[386522269,1758346920155,605.87,9.988e-05,2]
[386522270,1758346920213,605.87,0.00010488,2]
[386522271,1758346920385,605.87,0.00010987,2]
[386522272,1758346920460,605.87,0.00011487,2]
[386522273,1758346920581,605.87,0.00011986,2]
[386522274,1758346920760,605.87,0.00012485,2]
[386522275,1758346920968,605.87,0.00012985,2]
[386522276,1758346921171,273.63463785,0.00013484,2]
[386522277,1758346921201,332.23536215,0.00013484,2]
[386522278,1758346921385,605.87,0.00013984,2]
[386522279,1758346921634,605.87,0.00014483,2]
[386522280,1758346921828,605.87,0.00014983,2]
[386522281,1758346922012,605.87,0.00015482,2]
[386522282,1758346922208,605.87,0.00015981,2]
[386522283,1758346922424,605.87,0.00016481,2]
[386522284,1758346923229,605.87,0.0001698,2]
[386522285,1758346923310,605.87,0.0001748,2]
[386522286,1758346923375,313.82494903,0.00017979,2]
[386522287,1758346923403,292.04505097,0.00017979,2]
[386522288,1758346923471,605.87,0.00018479,2]
[386522289,1758347016973,276.56197688,0.00016986,2]
[386522290,1758347085130,172.3,0.00015174,2]
[386522292,1758347100174,300.0,0.0003,120]
[386522297,1758347324818,150.0,0.000173,2]
[386522298,1758347325188,150.0,0.0001848,2]
[386522302,1758347432259,-194.81,0.0001878,2]
[386522303,1758347432269,-263.13,0.00018885,2]
[386522304,1758347432279,-914.77536,0.0001889,2]
[386522305,1758347432288,-172.3,0.00018968,2]
[386522306,1758347432298,-1200.0,0.0001897,2]
[386522307,1758347432307,-500.0,0.00018971,2]
[386522308,1758347432317,-500.0,0.00018971,2]
[386522309,1758347432327,-212.98766845,0.00018971,2]
[386522310,1758347432336,-429.2287042,0.00018971,2]
[386522311,1758347432346,-605.87,0.00018978,2]
[386522312,1758347432356,-200.0,0.00018999,2]
[386522313,1758347432366,-3406.0,0.00019,2]
[386522314,1758347432375,-168.0,0.00019197,2]
[386522315,1758347432385,-168.0,0.00019365,2]
[386522316,1758347432394,-379.0,0.00019562,2]
[386522317,1758347432403,-300.0,0.000196,2]
[386522318,1758347432412,-175.05,0.000196,2]
[386522319,1758347432421,-543.54,0.000196,2]
[386522320,1758347432431,-150.0,0.0001967,2]
[386522321,1758347432440,-4000.44,0.000197,2]
[386522322,1758347432450,-150.0,0.00019794,2]
[386522323,1758347432464,-334.23102514,0.00019799,2]
[386522324,1758347432474,-2428.81137,0.000198,2]
[386522325,1758347432483,-35187.86394845,0.000198,2]
[386522326,1758347432492,-168.0,0.0001983,2]
[386522327,1758347432502,-1425.0,0.0001984,2]
[386522328,1758347432512,-228.677,0.00019888,2]
[386522329,1758347432521,-2428.81137,0.000199,2]
[386522330,1758347432531,-500.0,0.00019973,2]
[386522331,1758347432542,-500.0,0.00019973,2]
[386522332,1758347432552,-500.0,0.00019973,2]
[386522333,1758347432562,-500.0,0.00019973,2]
[386522334,1758347432570,-502.06797421,0.00019973,2]
[386522335,1758347432582,-506.51296997,0.00019973,2]
[386522336,1758347432591,-500.0,0.00019973,2]
[386522337,1758347432601,-500.0,0.00019973,2]
[386522338,1758347432611,-500.0,0.00019973,2]
[386522339,1758347432620,-32553.491004,0.0001998,2]
[386522340,1758347432630,-154.48,0.0001999,2]
[386522341,1758347432639,-151.81323912,0.00019993,2]
[386522342,1758347432649,-5157.0,0.00019994,2]
[386522343,1758347432658,-228.95833361,0.00019996,2]
[386522344,1758347432670,-4928.04166639,0.00019996,2]
[386522345,1758347432680,-151.0,0.00019997,2]
[386522347,1758347432690,-3910.59158449,0.00019998,2]
[386522349,1758347432879,-1547.40841551,0.00019998,2]
[386522350,1758347432889,-1083.531,0.00019999,2]
[386522351,1758347432899,-1002.0681,0.00019999,2]
[386522352,1758347432908,-623.0,0.0002,2]
[386522353,1758347432918,-13181.70875443,0.0002,2]
[386522354,1758347432927,-40397.98825498,0.0002,2]
[386522355,1758347438242,-183.98736932,0.0001999,2]
[386522356,1758347438252,-31976.80286876,0.0002,2]
[386522357,1758347438262,-4163.45531031,0.0002,2]
[386522358,1758347438275,-3175.25193133,0.0002,2]
[386522359,1758347438415,-2845.61694475,0.0002,2]
[386522360,1758347438431,-1127.52380626,0.0002,2]
[386522550,1758347440409,-3012461.55590596,0.0002,2]
[386522608,1758347440951,-2015.1857978,0.0002,2]
[386522611,1758347440962,-1724.33327536,0.0002,2]
[386523141,1758347446120,-433.05819189,0.0002,2]
[386523165,1758347446335,-43989.32480457,0.0002,2]
[386523168,1758347446346,-14141.39178,0.0002,2]
[386523170,1758347446358,-6432.30779349,0.0002,2]
[386523172,1758347446368,-8700.86584681,0.0002,2]
[386523174,1758347446383,-3488.25706668,0.0002,2]
[386523177,1758347446394,-476.49584476,0.0002,2]
[386523219,1758347718997,1228.0,0.00017915,2]
[386523220,1758347719602,1228.0,0.00017915,2]
[386523221,1758347720061,817.0,0.00017915,2]
[386523222,1758347720154,151.0,0.00017915,2]
[386523223,1758347720188,1228.0,0.00017915,2]
[386523224,1758347720599,817.0,0.00017915,2]
[386523225,1758347720683,151.0,0.00017915,2]
[386523226,1758347720744,1228.0,0.00017915,2]
[386523227,1758347721138,817.0,0.00017915,2]
[386523228,1758347721256,151.0,0.00017915,2]
[386523229,1758347721327,1228.0,0.00017915,2]
[386523230,1758347721696,817.0,0.00017915,2]
[386523231,1758347721808,151.0,0.00017915,2]
[386523232,1758347722210,1228.0,0.00017915,2]
[386523233,1758347722353,151.0,0.00017915,2]
[386523234,1758347722735,1228.0,0.00017915,2]